[Event "*** Titled Tuesday Blitz"]
[Site "Chess.com"]
[Date "2021.03.09"]
[Round "4"]
[White "PaulfromSPb"]
[Black "zeitnot2006"]
[Result "1-0"]
[WhiteElo "2705"]
[BlackElo "2509"]
[TimeControl "180+1"]
[EndTime "10:42:08 PST"]
[Termination "PaulfromSPb won by resignation"]

1. e4 {[%clk 0:02:39.8]} 1... c6 {[%clk 0:02:59.1]} 2. d4 {[%clk 0:02:25.1]}
2... d5 {[%clk 0:03:00]} 3. Nd2 {[%clk 0:00:23.1]} 3... g6 {[%clk 0:02:55]} 4.
e5 {[%clk 0:00:20.9]} 4... Bg7 {[%clk 0:02:54.5]} 5. f4 {[%clk 0:00:21.8]} 5...
h5 {[%clk 0:02:53.4]} 6. c3 {[%clk 0:00:21.7]} 6... Nh6 {[%clk 0:02:50.3]} 7.
Ngf3 {[%clk 0:00:21.7]} 7... Bg4 {[%clk 0:02:47.2]} 8. Bd3 {[%clk 0:00:21.6]}
8... e6 {[%clk 0:02:46.6]} 9. h3 {[%clk 0:00:21.4]} 9... Bxf3 {[%clk 0:02:46.3]}
10. Nxf3 {[%clk 0:00:21.3]} 10... Nf5 {[%clk 0:02:46.1]} 11. O-O {[%clk
0:00:20.4]} 11... Nd7 {[%clk 0:02:43.4]} 12. Bd2 {[%clk 0:00:20.3]} 12... c5
{[%clk 0:02:43.7]} 13. Qe1 {[%clk 0:00:19.9]} 13... c4 {[%clk 0:02:33.7]} 14.
Bc2 {[%clk 0:00:18]} 14... b5 {[%clk 0:02:31.8]} 15. Qf2 {[%clk 0:00:13.5]}
15... a5 {[%clk 0:02:24.8]} 16. b3 {[%clk 0:00:13.5]} 16... Qb6 {[%clk
0:02:16.6]} 17. bxc4 {[%clk 0:00:12.2]} 17... dxc4 {[%clk 0:02:15.6]} 18. Be4
{[%clk 0:00:10.8]} 18... Rb8 {[%clk 0:02:10.9]} 19. Rab1 {[%clk 0:00:11.7]}
19... Qc7 {[%clk 0:02:09.4]} 20. Ng5 {[%clk 0:00:11.6]} 20... h4 {[%clk
0:01:54.8]} 21. Qf3 {[%clk 0:00:10.9]} 21... Bf8 {[%clk 0:01:47.8]} 22. Bxf5
{[%clk 0:00:10.6]} 22... gxf5 {[%clk 0:01:46.1]} 23. d5 {[%clk 0:00:08.9]} 23...
Bc5+ {[%clk 0:01:44.4]} 24. Kh1 {[%clk 0:00:08.6]} 24... Nf8 {[%clk 0:01:36.4]}
25. d6 {[%clk 0:00:06.5]} 25... Qd7 {[%clk 0:01:28]} 26. Be3 {[%clk 0:00:06.3]}
26... Bxe3 {[%clk 0:01:16]} 27. Qxe3 {[%clk 0:00:07.2]} 27... Nh7 {[%clk
0:01:16.5]} 28. a3 {[%clk 0:00:07.6]} 28... Nxg5 {[%clk 0:01:16.5]} 29. fxg5
{[%clk 0:00:08.5]} 29... Rg8 {[%clk 0:01:09.2]} 30. Rb2 {[%clk 0:00:08.8]} 30...
Qc6 {[%clk 0:01:08.5]} 31. Rfb1 {[%clk 0:00:08.6]} 31... Kd7 {[%clk 0:01:09.2]}
32. Kh2 {[%clk 0:00:08.5]} 32... Rb7 {[%clk 0:00:56.7]} 33. a4 {[%clk
0:00:08.1]} 33... b4 {[%clk 0:00:52.9]} 34. cxb4 {[%clk 0:00:09]} 34... c3
{[%clk 0:00:53.3]} 35. Rb3 {[%clk 0:00:08]} 35... c2 {[%clk 0:00:51]} 36. b5
{[%clk 0:00:07.4]} 36... Qc4 {[%clk 0:00:33.5]} 37. Rc1 {[%clk 0:00:06.6]} 37...
Rc8 {[%clk 0:00:18.4]} 38. g6 {[%clk 0:00:06.1]} 38... fxg6 {[%clk 0:00:14.6]}
39. Qh6 {[%clk 0:00:06.2]} 39... Rd8 {[%clk 0:00:08.5]} 40. Rb2 {[%clk
0:00:05.2]} 40... Qe4 {[%clk 0:00:03.6]} 41. Rbxc2 {[%clk 0:00:05.3]} 41...
Qxe5+ {[%clk 0:00:04.2]} 42. Kh1 {[%clk 0:00:04.8]} 42... Qxd6 {[%clk
0:00:03.2]} 43. Rd2 {[%clk 0:00:05.1]} 43... Qxd2 {[%clk 0:00:03]} 44. Qxd2+
{[%clk 0:00:06]} 44... Ke7 {[%clk 0:00:03.8]} 45. Qg5+ {[%clk 0:00:05.9]} 45...
Kf7 {[%clk 0:00:04.5]} 46. Qxd8 {[%clk 0:00:05.2]} 1-0

[Event "*** Titled Tuesday Blitz"]
[Site "Chess.com"]
[Date "2021.03.09"]
[Round "4"]
[White "Iskusnyh"]
[Black "imdvb6307"]
[Result "0-1"]
[WhiteElo "2588"]
[BlackElo "2382"]
[TimeControl "180+1"]
[EndTime "10:42:08 PST"]
[Termination "imdvb6307 won on time"]

1. d4 {[%clk 0:03:00.9]} 1... d5 {[%clk 0:02:58.5]} 2. c4 {[%clk 0:03:01.4]}
2... c6 {[%clk 0:02:58.2]} 3. Nf3 {[%clk 0:03:00.7]} 3... Nf6 {[%clk 0:02:58.2]}
4. e3 {[%clk 0:03:01.3]} 4... Bg4 {[%clk 0:02:57.6]} 5. h3 {[%clk 0:02:59.8]}
5... Bxf3 {[%clk 0:02:57.5]} 6. Qxf3 {[%clk 0:02:59.2]} 6... e6 {[%clk 0:02:58]}
7. Nc3 {[%clk 0:02:58.8]} 7... Nbd7 {[%clk 0:02:58]} 8. Bd2 {[%clk 0:02:52.6]}
8... Bb4 {[%clk 0:02:57.1]} 9. Bd3 {[%clk 0:02:50.2]} 9... O-O {[%clk
0:02:53.8]} 10. cxd5 {[%clk 0:02:45.6]} 10... cxd5 {[%clk 0:02:51.3]} 11. O-O
{[%clk 0:02:44]} 11... Rc8 {[%clk 0:02:46]} 12. Rac1 {[%clk 0:02:40.3]} 12...
Qe7 {[%clk 0:02:41.5]} 13. a3 {[%clk 0:02:35.9]} 13... Bxc3 {[%clk 0:02:25]} 14.
Bxc3 {[%clk 0:02:34.9]} 14... Rfd8 {[%clk 0:02:21.5]} 15. Bb4 {[%clk 0:02:32]}
15... Qe8 {[%clk 0:02:19.9]} 16. g4 {[%clk 0:02:17.8]} 16... Nb6 {[%clk
0:02:19.1]} 17. g5 {[%clk 0:02:11.1]} 17... Nfd7 {[%clk 0:02:15.6]} 18. b3
{[%clk 0:02:05.7]} 18... e5 {[%clk 0:01:31.6]} 19. Qg4 {[%clk 0:01:43.2]} 19...
e4 {[%clk 0:01:25.7]} 20. Bb5 {[%clk 0:01:31.7]} 20... Qe6 {[%clk 0:01:24.9]}
21. Ba5 {[%clk 0:01:06.5]} 21... Qxg4+ {[%clk 0:01:23]} 22. hxg4 {[%clk
0:01:05.8]} 22... Nf8 {[%clk 0:01:18.6]} 23. Bb4 {[%clk 0:00:53.1]} 23... Ne6
{[%clk 0:01:08]} 24. Be7 {[%clk 0:00:48.9]} 24... Rxc1 {[%clk 0:01:07.8]} 25.
Rxc1 {[%clk 0:00:47.2]} 25... Rc8 {[%clk 0:01:07.9]} 26. Rxc8+ {[%clk 0:00:26]}
26... Nxc8 {[%clk 0:01:07.6]} 27. Bb4 {[%clk 0:00:24.3]} 27... Nxg5 {[%clk
0:00:49.8]} 28. Kg2 {[%clk 0:00:23.5]} 28... Ne6 {[%clk 0:00:39.7]} 29. Kg3
{[%clk 0:00:22.7]} 29... g5 {[%clk 0:00:39.4]} 30. a4 {[%clk 0:00:18.4]} 30...
Nc7 {[%clk 0:00:38]} 31. Bd7 {[%clk 0:00:17.4]} 31... Nb6 {[%clk 0:00:36.4]} 32.
Bf5 {[%clk 0:00:17.4]} 32... Ne6 {[%clk 0:00:36]} 33. Be7 {[%clk 0:00:16.1]}
33... h6 {[%clk 0:00:35.2]} 34. f3 {[%clk 0:00:15.5]} 34... exf3 {[%clk
0:00:34.4]} 35. Kxf3 {[%clk 0:00:15.7]} 35... Ng7 {[%clk 0:00:32.5]} 36. e4
{[%clk 0:00:13.9]} 36... Nxf5 {[%clk 0:00:31.3]} 37. exf5 {[%clk 0:00:12.5]}
37... Kg7 {[%clk 0:00:28.3]} 38. Ke3 {[%clk 0:00:11.5]} 38... f6 {[%clk
0:00:28.1]} 39. Bd8 {[%clk 0:00:11.2]} 39... Kf7 {[%clk 0:00:28.1]} 40. Kd3
{[%clk 0:00:10.8]} 40... Nd7 {[%clk 0:00:27.3]} 41. Kc3 {[%clk 0:00:09.1]} 41...
Kg7 {[%clk 0:00:23]} 42. a5 {[%clk 0:00:08.6]} 42... a6 {[%clk 0:00:22.5]} 43.
Be7 {[%clk 0:00:07.3]} 43... h5 {[%clk 0:00:22.5]} 44. gxh5 {[%clk 0:00:06.4]}
44... Kh6 {[%clk 0:00:22.7]} 45. b4 {[%clk 0:00:06.5]} 45... Kxh5 {[%clk
0:00:22.7]} 46. b5 {[%clk 0:00:06.8]} 46... Kg4 {[%clk 0:00:22.7]} 47. Kb4
{[%clk 0:00:02.1]} 47... Kxf5 {[%clk 0:00:21.9]} 0-1

[Event "*** Titled Tuesday Blitz"]
[Site "Chess.com"]
[Date "2021.03.09"]
[Round "4"]
[White "mariofs"]
[Black "hypert"]
[Result "0-1"]
[WhiteElo "2192"]
[BlackElo "2494"]
[TimeControl "180+1"]
[EndTime "10:42:08 PST"]
[Termination "hypert won by resignation"]

1. d4 {[%clk 0:03:00.9]} 1... Nf6 {[%clk 0:02:57.2]} 2. Nf3 {[%clk 0:02:59.2]}
2... d6 {[%clk 0:02:57.7]} 3. Bf4 {[%clk 0:02:59.2]} 3... g6 {[%clk 0:02:54.9]}
4. e3 {[%clk 0:02:59.5]} 4... Bg7 {[%clk 0:02:54.9]} 5. Be2 {[%clk 0:03:00.4]}
5... O-O {[%clk 0:02:55]} 6. O-O {[%clk 0:03:00.6]} 6... c5 {[%clk 0:02:55.5]}
7. c3 {[%clk 0:03:00.3]} 7... Be6 {[%clk 0:02:55.2]} 8. Nbd2 {[%clk 0:02:59.1]}
8... Qb6 {[%clk 0:02:54.5]} 9. Qb1 {[%clk 0:02:49.6]} 9... Nc6 {[%clk
0:02:46.2]} 10. h3 {[%clk 0:02:49.1]} 10... cxd4 {[%clk 0:02:43.7]} 11. exd4
{[%clk 0:02:45.2]} 11... Bf5 {[%clk 0:02:42.6]} 12. Qc1 {[%clk 0:02:45.4]} 12...
Rac8 {[%clk 0:02:42.2]} 13. Nc4 {[%clk 0:02:43.2]} 13... Qa6 {[%clk 0:02:39]}
14. Qd2 {[%clk 0:02:39.9]} 14... Ne4 {[%clk 0:02:36.3]} 15. Qe3 {[%clk
0:02:26.8]} 15... b5 {[%clk 0:02:19.1]} 16. Ncd2 {[%clk 0:02:15.2]} 16... Nxd2
{[%clk 0:02:16.3]} 17. Nxd2 {[%clk 0:02:16.1]} 17... Qb7 {[%clk 0:02:16.1]} 18.
Bf3 {[%clk 0:02:15.2]} 18... Rfe8 {[%clk 0:02:08.7]} 19. Rfe1 {[%clk 0:01:58.9]}
19... e5 {[%clk 0:02:04.9]} 20. dxe5 {[%clk 0:01:59.8]} 20... dxe5 {[%clk
0:02:04]} 21. Bh6 {[%clk 0:01:55.9]} 21... Qc7 {[%clk 0:01:43.1]} 22. Bxg7
{[%clk 0:01:54.7]} 22... Kxg7 {[%clk 0:01:42.6]} 23. Ne4 {[%clk 0:01:43.3]}
23... Bxe4 {[%clk 0:01:39.7]} 24. Qxe4 {[%clk 0:01:41.1]} 24... Na5 {[%clk
0:01:40.1]} 25. Rac1 {[%clk 0:01:21.8]} 25... Nc4 {[%clk 0:01:37.6]} 26. Qe2
{[%clk 0:01:21.6]} 26... e4 {[%clk 0:01:27.5]} 27. Bxe4 {[%clk 0:01:17.6]} 27...
f5 {[%clk 0:01:27]} 28. b3 {[%clk 0:01:16]} 28... Nd6 {[%clk 0:01:24.4]} 29. f3
{[%clk 0:01:06.9]} 29... fxe4 {[%clk 0:01:23.2]} 30. fxe4 {[%clk 0:01:07.8]}
30... Rxe4 {[%clk 0:01:21.8]} 31. Qd3 {[%clk 0:01:04.9]} 31... Qc5+ {[%clk
0:01:16.7]} 32. Kh1 {[%clk 0:01:03.3]} 32... Rxe1+ {[%clk 0:01:01.4]} 33. Rxe1
{[%clk 0:01:02.9]} 33... Rf8 {[%clk 0:00:57.1]} 34. Re7+ {[%clk 0:00:57.9]}
34... Rf7 {[%clk 0:00:57.1]} 35. b4 {[%clk 0:00:48.2]} 35... Qb6 {[%clk
0:00:36.5]} 36. Re6 {[%clk 0:00:47.3]} 36... Rd7 {[%clk 0:00:36.7]} 37. Qd5
{[%clk 0:00:42.1]} 37... Qd8 {[%clk 0:00:35.4]} 38. Qe5+ {[%clk 0:00:37.7]}
38... Kg8 {[%clk 0:00:35.3]} 39. Kh2 {[%clk 0:00:35.7]} 39... h6 {[%clk
0:00:30.7]} 40. Rxg6+ {[%clk 0:00:34.4]} 40... Kh7 {[%clk 0:00:31.2]} 41. Re6
{[%clk 0:00:33.1]} 41... Nf7 {[%clk 0:00:28.6]} 42. Qe4+ {[%clk 0:00:27.9]}
42... Kg7 {[%clk 0:00:29]} 43. Qg4+ {[%clk 0:00:27.5]} 43... Kf8 {[%clk
0:00:28.8]} 44. Qf5 {[%clk 0:00:20.6]} 44... Qc7+ {[%clk 0:00:26.4]} 45. Kg1
{[%clk 0:00:18.7]} 45... Rd1+ {[%clk 0:00:25.8]} 46. Kf2 {[%clk 0:00:19.1]}
46... Rd2+ {[%clk 0:00:23.6]} 47. Ke3 {[%clk 0:00:18.4]} 47... Rd6 {[%clk
0:00:21.7]} 48. Rxd6 {[%clk 0:00:14.1]} 48... Qxd6 {[%clk 0:00:22.6]} 49. Qxb5
{[%clk 0:00:13.9]} 49... Qg3+ {[%clk 0:00:20.3]} 50. Kd4 {[%clk 0:00:13.7]}
50... Qf4+ {[%clk 0:00:20.3]} 51. Kc5 {[%clk 0:00:12.2]} 51... Qe5+ {[%clk
0:00:19.9]} 52. Kc6 {[%clk 0:00:12.5]} 52... Nd8+ {[%clk 0:00:19.5]} 0-1

[Event "*** Titled Tuesday Blitz"]
[Site "Chess.com"]
[Date "2021.03.09"]
[Round "4"]
[White "jefferyx"]
[Black "TigrVShlyape"]
[Result "1/2-1/2"]
[WhiteElo "3014"]
[BlackElo "2836"]
[TimeControl "180+1"]
[EndTime "10:42:09 PST"]
[Termination "Game drawn - insufficient material"]

1. d4 {[%clk 0:03:00.9]} 1... d5 {[%clk 0:02:56.3]} 2. c4 {[%clk 0:03:00.1]}
2... c6 {[%clk 0:02:56.8]} 3. Nf3 {[%clk 0:03:00.6]} 3... Nf6 {[%clk 0:02:56.6]}
4. cxd5 {[%clk 0:03:01.3]} 4... cxd5 {[%clk 0:02:56.4]} 5. Nc3 {[%clk
0:03:02.2]} 5... a6 {[%clk 0:02:54.3]} 6. Bf4 {[%clk 0:03:02]} 6... Nc6 {[%clk
0:02:50.6]} 7. Rc1 {[%clk 0:03:02.2]} 7... e6 {[%clk 0:02:45]} 8. e3 {[%clk
0:03:02]} 8... Bd6 {[%clk 0:02:42.3]} 9. Bxd6 {[%clk 0:03:01.9]} 9... Qxd6
{[%clk 0:02:41.6]} 10. Bd3 {[%clk 0:03:02.6]} 10... O-O {[%clk 0:02:39.6]} 11.
O-O {[%clk 0:03:03.1]} 11... Bd7 {[%clk 0:02:39.5]} 12. Na4 {[%clk 0:03:03.3]}
12... Nb4 {[%clk 0:02:32.7]} 13. Bb1 {[%clk 0:03:03.4]} 13... Bxa4 {[%clk
0:02:32]} 14. Qxa4 {[%clk 0:03:03.1]} 14... Nc6 {[%clk 0:02:28.5]} 15. Rc3
{[%clk 0:02:58.5]} 15... Rfc8 {[%clk 0:02:27.6]} 16. Rfc1 {[%clk 0:02:58.7]}
16... Ne7 {[%clk 0:02:03.8]} 17. Ne5 {[%clk 0:02:58.6]} 17... Rxc3 {[%clk
0:02:00.8]} 18. Rxc3 {[%clk 0:02:59.5]} 18... Rc8 {[%clk 0:01:51.9]} 19. Qc2
{[%clk 0:02:16.2]} 19... Rxc3 {[%clk 0:01:49.1]} 20. Qxc3 {[%clk 0:02:17.1]}
20... g6 {[%clk 0:01:24.2]} 21. Bd3 {[%clk 0:02:15.3]} 21... Nd7 {[%clk
0:01:21.7]} 22. Nxd7 {[%clk 0:02:15]} 22... Qxd7 {[%clk 0:01:21.4]} 23. a3
{[%clk 0:02:12.6]} 23... Nc8 {[%clk 0:01:06.4]} 24. Qc5 {[%clk 0:02:07.3]} 24...
b6 {[%clk 0:00:59.3]} 25. Qc3 {[%clk 0:02:02.7]} 25... a5 {[%clk 0:00:54.3]} 26.
h4 {[%clk 0:02:02.8]} 26... Nd6 {[%clk 0:00:43.5]} 27. Kf1 {[%clk 0:01:55.3]}
27... Qc8 {[%clk 0:00:39.9]} 28. Qxc8+ {[%clk 0:01:52.7]} 28... Nxc8 {[%clk
0:00:39.7]} 29. Ke2 {[%clk 0:01:53.4]} 29... Nd6 {[%clk 0:00:39.2]} 30. Kd2
{[%clk 0:01:53.4]} 30... h6 {[%clk 0:00:37]} 31. Kc3 {[%clk 0:01:53.3]} 31...
Kf8 {[%clk 0:00:36.5]} 32. b4 {[%clk 0:01:53.4]} 32... axb4+ {[%clk 0:00:35.6]}
33. Kxb4 {[%clk 0:01:53.7]} 33... Ke7 {[%clk 0:00:35.4]} 34. g4 {[%clk
0:01:46.7]} 34... g5 {[%clk 0:00:35]} 35. hxg5 {[%clk 0:01:45.9]} 35... hxg5
{[%clk 0:00:35.2]} 36. f4 {[%clk 0:01:19.9]} 36... f6 {[%clk 0:00:32.9]} 37. a4
{[%clk 0:01:17.4]} 37... Kd7 {[%clk 0:00:32.5]} 38. Bg6 {[%clk 0:01:16.5]} 38...
Nc4 {[%clk 0:00:24.3]} 39. fxg5 {[%clk 0:01:12.6]} 39... fxg5 {[%clk 0:00:24.3]}
40. e4 {[%clk 0:01:13]} 40... Ne3 {[%clk 0:00:24.3]} 41. Kb5 {[%clk 0:01:09.2]}
41... Kc7 {[%clk 0:00:23.2]} 42. e5 {[%clk 0:01:00.6]} 42... Nxg4 {[%clk
0:00:22.2]} 43. Bf7 {[%clk 0:01:01]} 43... Ne3 {[%clk 0:00:22]} 44. Bxe6 {[%clk
0:01:01.2]} 44... g4 {[%clk 0:00:19.8]} 45. Ka6 {[%clk 0:00:44.9]} 45... g3
{[%clk 0:00:19.1]} 46. Bh3 {[%clk 0:00:45.8]} 46... g2 {[%clk 0:00:17.5]} 47.
Bxg2 {[%clk 0:00:46.4]} 47... Nxg2 {[%clk 0:00:17.7]} 48. e6 {[%clk 0:00:47.3]}
48... Ne3 {[%clk 0:00:16.8]} 49. e7 {[%clk 0:00:47.3]} 49... Kd7 {[%clk
0:00:17]} 50. Kxb6 {[%clk 0:00:47]} 50... Kxe7 {[%clk 0:00:17.3]} 51. a5 {[%clk
0:00:23.5]} 51... Nc4+ {[%clk 0:00:05.2]} 52. Kc6 {[%clk 0:00:22.5]} 52... Nxa5+
{[%clk 0:00:04.4]} 53. Kxd5 {[%clk 0:00:22.9]} 53... Nb3 {[%clk 0:00:04.2]} 54.
Kc4 {[%clk 0:00:23.3]} 54... Nxd4 {[%clk 0:00:04.5]} 1/2-1/2

[Event "*** Titled Tuesday Blitz"]
[Site "Chess.com"]
[Date "2021.03.09"]
[Round "4"]
[White "Marcin"]
[Black "eljanov"]
[Result "0-1"]
[WhiteElo "2524"]
[BlackElo "2858"]
[TimeControl "180+1"]
[EndTime "10:42:09 PST"]
[Termination "eljanov won on time"]

1. d4 {[%clk 0:03:00.9]} 1... Nf6 {[%clk 0:02:59.6]} 2. c4 {[%clk 0:02:59.3]}
2... e6 {[%clk 0:03:00.1]} 3. Nf3 {[%clk 0:02:53.4]} 3... b6 {[%clk 0:03:00]} 4.
g3 {[%clk 0:02:52.6]} 4... Bb7 {[%clk 0:03:00.3]} 5. Bg2 {[%clk 0:02:52.8]} 5...
Be7 {[%clk 0:03:00.8]} 6. O-O {[%clk 0:02:53.1]} 6... O-O {[%clk 0:03:00]} 7.
Nc3 {[%clk 0:02:53.6]} 7... Ne4 {[%clk 0:02:59.4]} 8. Bd2 {[%clk 0:02:47.5]}
8... f5 {[%clk 0:02:56.9]} 9. Ne5 {[%clk 0:02:44.5]} 9... Bf6 {[%clk 0:02:56.1]}
10. Qc2 {[%clk 0:02:02.7]} 10... Nxc3 {[%clk 0:02:55.6]} 11. Bxc3 {[%clk
0:01:48.2]} 11... Bxg2 {[%clk 0:02:55.1]} 12. Kxg2 {[%clk 0:01:48.5]} 12... d6
{[%clk 0:02:32.5]} 13. Nf3 {[%clk 0:01:36.9]} 13... Qd7 {[%clk 0:02:16.4]} 14.
e4 {[%clk 0:01:31.9]} 14... fxe4 {[%clk 0:02:16.6]} 15. Qxe4 {[%clk 0:01:32.5]}
15... d5 {[%clk 0:02:06.3]} 16. cxd5 {[%clk 0:01:32.6]} 16... exd5 {[%clk
0:02:05.6]} 17. Qd3 {[%clk 0:01:32.2]} 17... Nc6 {[%clk 0:02:04]} 18. Rad1
{[%clk 0:01:15.6]} 18... Rae8 {[%clk 0:01:35.4]} 19. Rfe1 {[%clk 0:01:10]} 19...
Nd8 {[%clk 0:01:27.5]} 20. Ne5 {[%clk 0:01:00.7]} 20... Bxe5 {[%clk 0:01:27.5]}
21. dxe5 {[%clk 0:01:01.6]} 21... c6 {[%clk 0:01:26.1]} 22. b4 {[%clk
0:01:01.7]} 22... Ne6 {[%clk 0:01:21.4]} 23. b5 {[%clk 0:01:00.4]} 23... Rd8
{[%clk 0:01:09.5]} 24. bxc6 {[%clk 0:00:53.8]} 24... Qxc6 {[%clk 0:01:10.4]} 25.
Bd4 {[%clk 0:00:47.3]} 25... Qc4 {[%clk 0:01:10.5]} 26. Qxc4 {[%clk 0:00:31.3]}
26... dxc4 {[%clk 0:01:10.3]} 27. Bc3 {[%clk 0:00:31.8]} 27... Nc5 {[%clk
0:01:00]} 28. Bb4 {[%clk 0:00:20.6]} 28... Nd3 {[%clk 0:00:55.2]} 29. Bxf8
{[%clk 0:00:20.4]} 29... Nxe1+ {[%clk 0:00:55.5]} 30. Rxe1 {[%clk 0:00:20.7]}
30... Kxf8 {[%clk 0:00:56.1]} 31. Kf3 {[%clk 0:00:13.5]} 31... Rd2 {[%clk
0:00:49.9]} 32. a4 {[%clk 0:00:13]} 32... Ra2 {[%clk 0:00:48.8]} 33. Ke4 {[%clk
0:00:07.8]} 33... Rxa4 {[%clk 0:00:45]} 34. Kd5 {[%clk 0:00:08.1]} 34... Ke7
{[%clk 0:00:44.8]} 35. f4 {[%clk 0:00:06.5]} 35... c3 {[%clk 0:00:39]} 36. Rc1
{[%clk 0:00:04.8]} 36... Ra3 {[%clk 0:00:26.1]} 37. f5 {[%clk 0:00:04.4]} 37...
b5 {[%clk 0:00:19.3]} 38. Kc5 {[%clk 0:00:03.5]} 38... a6 {[%clk 0:00:18.6]} 39.
g4 {[%clk 0:00:02.9]} 39... Ra4 {[%clk 0:00:16.6]} 40. Rxc3 {[%clk 0:00:03]}
40... Rxg4 {[%clk 0:00:16.5]} 41. Kd5 {[%clk 0:00:03.4]} 41... Kd8 {[%clk
0:00:09.7]} 42. e6 {[%clk 0:00:02.4]} 42... b4 {[%clk 0:00:09.1]} 43. Rc6 {[%clk
0:00:02.2]} 43... a5 {[%clk 0:00:08.9]} 0-1

[Event "*** Titled Tuesday Blitz"]
[Site "Chess.com"]
[Date "2021.03.09"]
[Round "4"]
[White "Kaiyrbekov"]
[Black "mr_gustavo"]
[Result "0-1"]
[WhiteElo "2089"]
[BlackElo "2399"]
[TimeControl "180+1"]
[EndTime "10:42:09 PST"]
[Termination "mr_gustavo won on time"]

1. c4 {[%clk 0:02:59]} 1... Nf6 {[%clk 0:02:58.7]} 2. Nc3 {[%clk 0:02:59.4]}
2... g6 {[%clk 0:02:59.6]} 3. Nf3 {[%clk 0:02:59.6]} 3... Bg7 {[%clk 0:02:59.4]}
4. g3 {[%clk 0:02:59.7]} 4... O-O {[%clk 0:02:59.6]} 5. d4 {[%clk 0:02:59.5]}
5... d6 {[%clk 0:03:00.1]} 6. Bg2 {[%clk 0:02:59.3]} 6... Nc6 {[%clk 0:03:00.7]}
7. O-O {[%clk 0:02:58.6]} 7... Bg4 {[%clk 0:03:01.3]} 8. e4 {[%clk 0:02:59]}
8... Nd7 {[%clk 0:02:59.1]} 9. Be3 {[%clk 0:02:40.7]} 9... e5 {[%clk 0:02:58.9]}
10. d5 {[%clk 0:02:36.1]} 10... Nd4 {[%clk 0:02:59.3]} 11. h3 {[%clk 0:02:29.9]}
11... Nxf3+ {[%clk 0:02:56.4]} 12. Bxf3 {[%clk 0:02:26.4]} 12... Bxh3 {[%clk
0:02:57]} 13. Re1 {[%clk 0:02:26.1]} 13... f5 {[%clk 0:02:56.5]} 14. Kh2 {[%clk
0:02:23.3]} 14... f4 {[%clk 0:02:45.4]} 15. Kxh3 {[%clk 0:01:51]} 15... fxe3
{[%clk 0:02:45.4]} 16. Rxe3 {[%clk 0:01:50.9]} 16... Qg5 {[%clk 0:02:44.3]} 17.
Kg2 {[%clk 0:01:46.3]} 17... Nf6 {[%clk 0:02:43.1]} 18. Qh1 {[%clk 0:01:37.4]}
18... h5 {[%clk 0:02:40.6]} 19. Qh4 {[%clk 0:01:31.1]} 19... Qh6 {[%clk
0:02:40.3]} 20. Rh1 {[%clk 0:01:19]} 20... g5 {[%clk 0:02:39.2]} 21. Qh2 {[%clk
0:01:07.9]} 21... g4 {[%clk 0:02:38.9]} 22. Be2 {[%clk 0:01:03.9]} 22... Qg6
{[%clk 0:02:39.3]} 23. Qh4 {[%clk 0:00:55]} 23... Bh6 {[%clk 0:02:37.6]} 24. Rd3
{[%clk 0:00:50.4]} 24... Bg5 {[%clk 0:02:37.9]} 25. Qh2 {[%clk 0:00:48.1]} 25...
Nxe4 {[%clk 0:02:38.4]} 26. Qxh5 {[%clk 0:00:31.8]} 26... Rxf2+ {[%clk
0:02:36.8]} 27. Kg1 {[%clk 0:00:29.5]} 27... Qxh5 {[%clk 0:02:08]} 28. Rxh5
{[%clk 0:00:28.4]} 28... Be7 {[%clk 0:01:31.4]} 29. Nxe4 {[%clk 0:00:26.8]}
29... Rxe2 {[%clk 0:01:29.8]} 30. Nf2 {[%clk 0:00:21.6]} 30... Rxb2 {[%clk
0:01:27.4]} 31. Nxg4 {[%clk 0:00:21.5]} 31... Rf8 {[%clk 0:01:27.7]} 32. Nh6+
{[%clk 0:00:20.7]} 32... Kg7 {[%clk 0:01:23.4]} 33. Nf5+ {[%clk 0:00:20.8]}
33... Kg6 {[%clk 0:01:08.9]} 34. g4 {[%clk 0:00:20.8]} 34... Bg5 {[%clk
0:01:09.4]} 35. Rdh3 {[%clk 0:00:18.7]} 35... e4 {[%clk 0:00:47.5]} 36. Rh7
{[%clk 0:00:18.2]} 36... e3 {[%clk 0:00:46.8]} 37. Rg7+ {[%clk 0:00:17.8]} 37...
Kf6 {[%clk 0:00:46.3]} 38. Rh5 {[%clk 0:00:16.7]} 38... e2 {[%clk 0:00:30.5]}
39. Kf2 {[%clk 0:00:13.4]} 39... Bd2 {[%clk 0:00:31]} 40. Rh6+ {[%clk 0:00:12]}
40... Bxh6 {[%clk 0:00:30.4]} 41. Re7 {[%clk 0:00:09.4]} 41... Bg5 {[%clk
0:00:21.2]} 42. Re6+ {[%clk 0:00:08]} 42... Kf7 {[%clk 0:00:21.7]} 43. Ng3
{[%clk 0:00:05.9]} 43... Bh4 {[%clk 0:00:20]} 44. Kg2 {[%clk 0:00:03.1]} 44...
e1=Q+ {[%clk 0:00:17.5]} 0-1